[Event "*** Titled Tuesday Blitz"]
[Site "Chess.com"]
[Date "2020.02.04"]
[Round "5"]
[White "FedaMaster"]
[Black "Philosopherrr"]
[Result "1-0"]
[WhiteElo "2593"]
[BlackElo "2437"]
[TimeControl "180+2"]
[EndTime "10:07:06 PST"]
[Termination "FedaMaster won by resignation"]

1. e4 {[%clk 0:03:01.8]} 1... e5 {[%clk 0:02:59]} 2. Nf3 {[%clk 0:03:02.1]} 2...
Nc6 {[%clk 0:02:58.7]} 3. Bc4 {[%clk 0:03:03.1]} 3... Bc5 {[%clk 0:02:57.8]} 4.
b4 {[%clk 0:03:04.4]} 4... Bb6 {[%clk 0:02:56.3]} 5. a4 {[%clk 0:03:04.3]} 5...
a6 {[%clk 0:02:57]} 6. Nc3 {[%clk 0:03:01.1]} 6... Nf6 {[%clk 0:02:57]} 7. Nd5
{[%clk 0:03:01.9]} 7... Nxd5 {[%clk 0:02:55.8]} 8. exd5 {[%clk 0:02:55.3]} 8...
Nd4 {[%clk 0:02:56.4]} 9. Nxe5 {[%clk 0:02:49.5]} 9... Qg5 {[%clk 0:02:50.9]}
10. O-O {[%clk 0:02:45.9]} 10... O-O {[%clk 0:02:42.4]} 11. Nf3 {[%clk
0:01:39.4]} 11... Qf6 {[%clk 0:02:39]} 12. Ra3 {[%clk 0:01:23.4]} 12... d6
{[%clk 0:02:35.3]} 13. Nxd4 {[%clk 0:01:15.7]} 13... Qxd4 {[%clk 0:02:31.1]} 14.
d3 {[%clk 0:01:11.2]} 14... Qf6 {[%clk 0:02:31]} 15. a5 {[%clk 0:01:07.7]} 15...
Bd4 {[%clk 0:02:29.8]} 16. Be3 {[%clk 0:01:05.3]} 16... Bc3 {[%clk 0:02:29.2]}
17. Bd2 {[%clk 0:01:03.5]} 17... Bd4 {[%clk 0:02:27.5]} 18. c3 {[%clk
0:01:03.6]} 18... Ba7 {[%clk 0:02:24.9]} 19. d4 {[%clk 0:01:01.4]} 19... Bf5
{[%clk 0:02:23.3]} 20. Qf3 {[%clk 0:00:58.8]} 20... Rfe8 {[%clk 0:02:20.2]} 21.
Raa1 {[%clk 0:00:56.1]} 21... Be4 {[%clk 0:02:19.9]} 22. Qxf6 {[%clk 0:00:56.9]}
22... gxf6 {[%clk 0:02:17.6]} 23. f3 {[%clk 0:00:54.5]} 23... Bf5 {[%clk
0:02:09.8]} 24. Rfe1 {[%clk 0:00:54]} 24... Bg6 {[%clk 0:01:59.6]} 25. Rxe8+
{[%clk 0:00:46.9]} 25... Rxe8 {[%clk 0:02:00.1]} 26. Re1 {[%clk 0:00:48.6]}
26... Rc8 {[%clk 0:01:46.2]} 27. Bh6 {[%clk 0:00:42.7]} 27... b5 {[%clk
0:01:29.2]} 28. axb6 {[%clk 0:00:38.6]} 28... Bxb6 {[%clk 0:01:26]} 29. Bxa6
{[%clk 0:00:39.7]} 29... Ra8 {[%clk 0:01:27.2]} 30. Bb7 {[%clk 0:00:40.6]} 30...
Rb8 {[%clk 0:01:27.6]} 31. g4 {[%clk 0:00:31.7]} 31... f5 {[%clk 0:01:27.7]} 32.
h4 {[%clk 0:00:11.5]} 32... fxg4 {[%clk 0:01:28.5]} 33. fxg4 {[%clk 0:00:13.4]}
33... f5 {[%clk 0:01:29.9]} 34. gxf5 {[%clk 0:00:10.7]} 34... Bxf5 {[%clk
0:01:30.2]} 35. Bc6 {[%clk 0:00:11.7]} 35... Kf7 {[%clk 0:01:30.6]} 36. Bg5
{[%clk 0:00:12.1]} 36... Kg6 {[%clk 0:01:29.1]} 37. Re8 {[%clk 0:00:09.9]} 37...
Rxe8 {[%clk 0:01:26.4]} 38. Bxe8+ {[%clk 0:00:11.8]} 38... Kg7 {[%clk
0:01:28.2]} 39. Kf2 {[%clk 0:00:12]} 39... h6 {[%clk 0:01:28.8]} 40. Bd8 {[%clk
0:00:12.2]} 40... Be4 {[%clk 0:01:29.4]} 41. Bc6 {[%clk 0:00:11.3]} 41... Kg6
{[%clk 0:01:30.7]} 42. Ke3 {[%clk 0:00:11.8]} 42... Bg2 {[%clk 0:01:31.1]} 43.
Be8+ {[%clk 0:00:11.4]} 43... Kg7 {[%clk 0:01:31.9]} 44. Bc6 {[%clk 0:00:10.9]}
44... Bh1 {[%clk 0:01:31.9]} 45. c4 {[%clk 0:00:12]} 45... Ba7 {[%clk
0:01:31.5]} 46. Bxc7 {[%clk 0:00:12.4]} 46... Kg6 {[%clk 0:01:31.4]} 47. b5
{[%clk 0:00:13.1]} 47... Kh5 {[%clk 0:01:32.2]} 48. Bd8 {[%clk 0:00:13.8]} 48...
Kg4 {[%clk 0:01:32.5]} 49. Bd7+ {[%clk 0:00:14.6]} 49... Kg3 {[%clk 0:01:32.9]}
50. h5 {[%clk 0:00:14.9]} 50... Bf3 {[%clk 0:01:32.3]} 51. b6 {[%clk 0:00:14.5]}
51... Bxb6 {[%clk 0:01:31.9]} 52. Bxb6 {[%clk 0:00:16.4]} 52... Bxh5 {[%clk
0:01:33.2]} 53. Bc7 {[%clk 0:00:18]} 1-0

[Event "*** Titled Tuesday Blitz"]
[Site "Chess.com"]
[Date "2020.02.04"]
[Round "5"]
[White "NewBornNow"]
[Black "severomorskij"]
[Result "1-0"]
[WhiteElo "2685"]
[BlackElo "2824"]
[TimeControl "180+2"]
[EndTime "10:07:09 PST"]
[Termination "NewBornNow won by resignation"]

1. e4 {[%clk 0:03:01.9]} 1... c5 {[%clk 0:03:00.2]} 2. Nf3 {[%clk 0:03:02.3]}
2... e6 {[%clk 0:03:00.1]} 3. d3 {[%clk 0:03:02.1]} 3... Nc6 {[%clk 0:02:59.3]}
4. g3 {[%clk 0:03:02.3]} 4... d5 {[%clk 0:02:57.7]} 5. Qe2 {[%clk 0:03:03.4]}
5... Nf6 {[%clk 0:02:53.1]} 6. Bg2 {[%clk 0:03:04.3]} 6... g6 {[%clk 0:02:54.1]}
7. O-O {[%clk 0:03:03.5]} 7... Bg7 {[%clk 0:02:55.2]} 8. c3 {[%clk 0:02:58.7]}
8... O-O {[%clk 0:02:54]} 9. e5 {[%clk 0:02:59.5]} 9... Nd7 {[%clk 0:02:40.5]}
10. d4 {[%clk 0:02:55.1]} 10... f6 {[%clk 0:02:06.3]} 11. exf6 {[%clk
0:02:54.4]} 11... Nxf6 {[%clk 0:02:06.9]} 12. dxc5 {[%clk 0:02:47.4]} 12... Qe7
{[%clk 0:01:49.7]} 13. Bf4 {[%clk 0:02:37.5]} 13... Qxc5 {[%clk 0:01:45.3]} 14.
Nbd2 {[%clk 0:02:37.4]} 14... Bd7 {[%clk 0:01:29.1]} 15. Ne5 {[%clk 0:02:35.9]}
15... Nxe5 {[%clk 0:01:25.7]} 16. Qxe5 {[%clk 0:02:29]} 16... Rae8 {[%clk
0:00:52.1]} 17. Nb3 {[%clk 0:02:23.3]} 17... Qc8 {[%clk 0:00:51.3]} 18. Qe2
{[%clk 0:01:57.5]} 18... Bc6 {[%clk 0:00:31.7]} 19. Be5 {[%clk 0:01:55.4]} 19...
Nd7 {[%clk 0:00:26.8]} 20. Bxg7 {[%clk 0:01:54.4]} 20... Kxg7 {[%clk 0:00:28.7]}
21. Rad1 {[%clk 0:01:54.4]} 21... a6 {[%clk 0:00:24.6]} 22. Rfe1 {[%clk
0:01:46.7]} 22... Qc7 {[%clk 0:00:22.2]} 23. f4 {[%clk 0:01:31.8]} 23... Ba4
{[%clk 0:00:14.7]} 24. Rd4 {[%clk 0:01:26.2]} 24... Bxb3 {[%clk 0:00:15.3]} 25.
axb3 {[%clk 0:01:26.8]} 25... Qb6 {[%clk 0:00:15.2]} 26. Qe3 {[%clk 0:01:09.9]}
26... a5 {[%clk 0:00:08.7]} 27. b4 {[%clk 0:01:07.2]} 27... e5 {[%clk
0:00:09.2]} 28. Rxd5 {[%clk 0:01:07.4]} 28... Qxe3+ {[%clk 0:00:04.4]} 29. Rxe3
{[%clk 0:01:08.2]} 29... Nb6 {[%clk 0:00:05.6]} 30. Rdxe5 {[%clk 0:01:07.9]}
30... Rd8 {[%clk 0:00:06.6]} 31. bxa5 {[%clk 0:01:05.2]} 31... Nc4 {[%clk
0:00:07.1]} 32. Re7+ {[%clk 0:01:04.6]} 32... Kh8 {[%clk 0:00:06.5]} 33. Re2
{[%clk 0:01:04.9]} 33... Nxa5 {[%clk 0:00:07.1]} 34. b4 {[%clk 0:01:05]} 34...
Nc4 {[%clk 0:00:06.5]} 35. Rxb7 {[%clk 0:01:03.6]} 35... Nd6 {[%clk 0:00:06.9]}
36. Rc7 {[%clk 0:01:01.7]} 36... Nb5 {[%clk 0:00:03.7]} 37. Rc5 {[%clk
0:01:00.9]} 37... Nd6 {[%clk 0:00:04.2]} 38. b5 {[%clk 0:00:58.7]} 38... g5
{[%clk 0:00:04]} 39. Rxg5 {[%clk 0:00:56.2]} 39... Nc4 {[%clk 0:00:04.3]} 40.
Rc5 {[%clk 0:00:54.8]} 40... Rd1+ {[%clk 0:00:05.3]} 41. Kf2 {[%clk 0:00:55.4]}
41... Nd6 {[%clk 0:00:05.1]} 42. b6 {[%clk 0:00:54.4]} 42... Rb1 {[%clk
0:00:05.4]} 43. Rc6 {[%clk 0:00:52.2]} 43... Nf5 {[%clk 0:00:05.1]} 44. Be4
{[%clk 0:00:49.6]} 1-0

[Event "*** Titled Tuesday Blitz"]
[Site "Chess.com"]
[Date "2020.02.04"]
[Round "5"]
[White "Kira170"]
[Black "vinniethepooh"]
[Result "0-1"]
[WhiteElo "2502"]
[BlackElo "2783"]
[TimeControl "180+2"]
[EndTime "10:07:12 PST"]
[Termination "vinniethepooh won by resignation"]

1. d4 {[%clk 0:03:01.9]} 1... Nf6 {[%clk 0:03:00.3]} 2. Nc3 {[%clk 0:03:02.8]}
2... d5 {[%clk 0:03:00.2]} 3. Bf4 {[%clk 0:03:03.7]} 3... e6 {[%clk 0:03:01.3]}
4. e3 {[%clk 0:03:04.8]} 4... Bd6 {[%clk 0:02:55.3]} 5. Bd3 {[%clk 0:03:03.7]}
5... a6 {[%clk 0:02:53.2]} 6. Nf3 {[%clk 0:03:01.3]} 6... Bxf4 {[%clk 0:02:49]}
7. exf4 {[%clk 0:03:02.2]} 7... c5 {[%clk 0:02:50.9]} 8. dxc5 {[%clk 0:03:02.7]}
8... Qc7 {[%clk 0:02:43]} 9. Qd2 {[%clk 0:03:01.6]} 9... Qxc5 {[%clk 0:02:41.8]}
10. h3 {[%clk 0:02:53.7]} 10... Bd7 {[%clk 0:02:34.5]} 11. Ne5 {[%clk
0:02:49.3]} 11... Nc6 {[%clk 0:02:32.6]} 12. g4 {[%clk 0:02:48.1]} 12... Nxe5
{[%clk 0:02:17]} 13. fxe5 {[%clk 0:02:48.7]} 13... d4 {[%clk 0:02:18.6]} 14.
exf6 {[%clk 0:02:10.9]} 14... dxc3 {[%clk 0:02:16.4]} 15. Qxc3 {[%clk
0:02:07.8]} 15... Qxc3+ {[%clk 0:01:57]} 16. bxc3 {[%clk 0:02:09.7]} 16... gxf6
{[%clk 0:01:58.6]} 17. Ke2 {[%clk 0:02:09.8]} 17... Bc6 {[%clk 0:01:45]} 18.
Rhb1 {[%clk 0:02:09]} 18... h5 {[%clk 0:01:41.9]} 19. Rb4 {[%clk 0:02:08.7]}
19... hxg4 {[%clk 0:01:36.1]} 20. hxg4 {[%clk 0:02:10.6]} 20... Rh3 {[%clk
0:01:37]} 21. Rab1 {[%clk 0:02:03.1]} 21... O-O-O {[%clk 0:01:27.7]} 22. Rf4
{[%clk 0:01:53.3]} 22... f5 {[%clk 0:00:33.2]} 23. gxf5 {[%clk 0:01:46.8]} 23...
e5 {[%clk 0:00:33.8]} 24. Rc4 {[%clk 0:01:33.7]} 24... Rd6 {[%clk 0:00:18.7]}
25. Be4 {[%clk 0:00:59.4]} 25... Kc7 {[%clk 0:00:18.7]} 26. Bxc6 {[%clk
0:00:53.6]} 26... Rxc6 {[%clk 0:00:18.5]} 27. Rbb4 {[%clk 0:00:51.7]} 27... Rxc3
{[%clk 0:00:12.2]} 28. Rxc6+ {[%clk 0:00:51.9]} 28... Kxc6 {[%clk 0:00:12.1]}
29. f4 {[%clk 0:00:38.9]} 29... exf4 {[%clk 0:00:09]} 30. Kd2 {[%clk 0:00:39.3]}
30... Ra3 {[%clk 0:00:06.3]} 31. Rxf4 {[%clk 0:00:37.7]} 31... Rxa2 {[%clk
0:00:07.8]} 32. Rh4 {[%clk 0:00:34.1]} 32... Ra5 {[%clk 0:00:07.7]} 33. Rh6+
{[%clk 0:00:35.2]} 33... Kd7 {[%clk 0:00:07.6]} 34. Rf6 {[%clk 0:00:35.8]} 34...
Ke7 {[%clk 0:00:08.4]} 35. Rb6 {[%clk 0:00:35.8]} 35... Rb5 {[%clk 0:00:09.9]}
36. Rxb5 {[%clk 0:00:20.4]} 36... axb5 {[%clk 0:00:11.8]} 37. Kc3 {[%clk
0:00:21.6]} 37... Kf6 {[%clk 0:00:12.9]} 38. Kb4 {[%clk 0:00:22.8]} 38... Kxf5
{[%clk 0:00:14.3]} 39. Kxb5 {[%clk 0:00:24.3]} 39... Ke4 {[%clk 0:00:15.9]} 40.
Kb6 {[%clk 0:00:24.9]} 40... Kd4 {[%clk 0:00:13.6]} 0-1

[Event "*** Titled Tuesday Blitz"]
[Site "Chess.com"]
[Date "2020.02.04"]
[Round "5"]
[White "Rap_woyska"]
[Black "Carnivoras"]
[Result "0-1"]
[WhiteElo "2400"]
[BlackElo "2546"]
[TimeControl "180+2"]
[EndTime "10:07:14 PST"]
[Termination "Carnivoras won by resignation"]

1. c4 {[%clk 0:03:01.9]} 1... e6 {[%clk 0:02:59.7]} 2. Nf3 {[%clk 0:03:02.8]}
2... d5 {[%clk 0:03:01.1]} 3. e3 {[%clk 0:03:03.7]} 3... Nf6 {[%clk 0:03:02]} 4.
b3 {[%clk 0:03:04.9]} 4... Be7 {[%clk 0:03:02.4]} 5. Nc3 {[%clk 0:03:06.2]} 5...
O-O {[%clk 0:03:03.9]} 6. Bb2 {[%clk 0:03:07.6]} 6... c5 {[%clk 0:03:04.1]} 7.
cxd5 {[%clk 0:03:08]} 7... exd5 {[%clk 0:03:04.9]} 8. d4 {[%clk 0:03:08.2]} 8...
Nc6 {[%clk 0:03:02.3]} 9. Be2 {[%clk 0:03:09.1]} 9... Bg4 {[%clk 0:02:59.4]} 10.
dxc5 {[%clk 0:03:07.9]} 10... Bxc5 {[%clk 0:02:58.4]} 11. O-O {[%clk 0:03:09.2]}
11... h6 {[%clk 0:02:49.3]} 12. Rc1 {[%clk 0:03:07.8]} 12... Bd6 {[%clk
0:02:49.4]} 13. Nb5 {[%clk 0:03:05.5]} 13... Be7 {[%clk 0:02:43.2]} 14. h3
{[%clk 0:03:01.1]} 14... Bh5 {[%clk 0:02:41.9]} 15. Ne5 {[%clk 0:02:56]} 15...
Bxe2 {[%clk 0:02:37.1]} 16. Qxe2 {[%clk 0:02:57.9]} 16... Qb6 {[%clk 0:02:25.6]}
17. Nxc6 {[%clk 0:02:33.8]} 17... bxc6 {[%clk 0:02:27.5]} 18. Nd4 {[%clk
0:02:35.1]} 18... Rfc8 {[%clk 0:02:24.4]} 19. Nf5 {[%clk 0:02:32.1]} 19... Qd8
{[%clk 0:02:22.5]} 20. Qf3 {[%clk 0:02:23.7]} 20... Kh7 {[%clk 0:02:04.8]} 21.
Nxe7 {[%clk 0:02:21.3]} 21... Qxe7 {[%clk 0:02:04.3]} 22. Bxf6 {[%clk
0:02:22.2]} 22... Qxf6 {[%clk 0:02:04.1]} 23. Qxf6 {[%clk 0:02:22.2]} 23... gxf6
{[%clk 0:02:06]} 24. Rc5 {[%clk 0:02:21.9]} 24... Rab8 {[%clk 0:02:04.6]} 25.
Rfc1 {[%clk 0:02:21.5]} 25... Rb6 {[%clk 0:02:05.2]} 26. Rxd5 {[%clk 0:02:21.7]}
26... Kg6 {[%clk 0:01:54.4]} 27. Rdc5 {[%clk 0:01:58.5]} 27... Ra6 {[%clk
0:01:49.3]} 28. R1c2 {[%clk 0:01:55.5]} 28... Rb6 {[%clk 0:01:50.6]} 29. g4
{[%clk 0:01:55.5]} 29... Kg7 {[%clk 0:01:50.8]} 30. Kg2 {[%clk 0:01:56.4]} 30...
Kg6 {[%clk 0:01:52.7]} 31. Kg3 {[%clk 0:01:58.3]} 31... Kg7 {[%clk 0:01:53.2]}
32. Rd2 {[%clk 0:01:56.5]} 32... Kg6 {[%clk 0:01:55.1]} 33. Rd6 {[%clk
0:01:56.2]} 33... Ra6 {[%clk 0:01:51.9]} 34. Rdxc6 {[%clk 0:01:58.1]} 34...
Raxc6 {[%clk 0:01:51.9]} 35. Ra5 {[%clk 0:01:49.2]} 35... R8c7 {[%clk
0:01:52.3]} 36. h4 {[%clk 0:01:44.1]} 36... Rc5 {[%clk 0:01:52.4]} 37. Ra6
{[%clk 0:01:44.2]} 37... R5c6 {[%clk 0:01:53.6]} 38. Ra5 {[%clk 0:01:44.7]}
38... Kg7 {[%clk 0:01:54.9]} 39. h5 {[%clk 0:01:43.5]} 39... Rc2 {[%clk
0:01:54.9]} 40. f3 {[%clk 0:01:43.5]} 40... Re2 {[%clk 0:01:54.6]} 41. e4 {[%clk
0:01:44.5]} 41... Re3 {[%clk 0:01:51.2]} 42. Kf2 {[%clk 0:01:40.8]} 42... Rcc3
{[%clk 0:01:50.9]} 43. Rf5 {[%clk 0:01:42]} 43... Red3 {[%clk 0:01:50.9]} 44.
Ke2 {[%clk 0:01:39.9]} 44... Rd6 {[%clk 0:01:49.8]} 45. Ra5 {[%clk 0:01:39.6]}
45... Rc2+ {[%clk 0:01:49.9]} 46. Ke3 {[%clk 0:01:39.9]} 46... a6 {[%clk
0:01:51.1]} 47. b4 {[%clk 0:01:35.3]} 47... Rdc6 {[%clk 0:01:51.7]} 48. Kf4
{[%clk 0:00:56.3]} 48... R6c3 {[%clk 0:01:50.1]} 49. Kg3 {[%clk 0:00:34.8]}
49... Rd3 {[%clk 0:01:43.8]} 50. a4 {[%clk 0:00:32.2]} 50... Rcc3 {[%clk
0:01:42.7]} 51. Rf5 {[%clk 0:00:33]} 51... Rd4 {[%clk 0:01:41.9]} 52. b5 {[%clk
0:00:25.1]} 52... a5 {[%clk 0:01:39.7]} 53. b6 {[%clk 0:00:14.7]} 53... Rxa4
{[%clk 0:01:37.1]} 54. Rb5 {[%clk 0:00:15.8]} 54... Rc8 {[%clk 0:01:36.8]} 55.
b7 {[%clk 0:00:16.5]} 55... Rb8 {[%clk 0:01:37.7]} 56. Kf4 {[%clk 0:00:18.1]}
56... Ra1 {[%clk 0:01:37.7]} 57. Kf5 {[%clk 0:00:18.2]} 57... a4 {[%clk
0:01:37.1]} 58. f4 {[%clk 0:00:19.6]} 58... a3 {[%clk 0:01:37.9]} 59. e5 {[%clk
0:00:19.8]} 59... fxe5 {[%clk 0:01:39.1]} 0-1

[Event "*** Titled Tuesday Blitz"]
[Site "Chess.com"]
[Date "2020.02.04"]
[Round "5"]
[White "SONOFHOLYGOD"]
[Black "AwareIdea"]
[Result "1-0"]
[WhiteElo "2608"]
[BlackElo "2429"]
[TimeControl "180+2"]
[EndTime "10:07:15 PST"]
[Termination "SONOFHOLYGOD won by resignation"]

1. d4 {[%clk 0:03:01.9]} 1... d5 {[%clk 0:03:00.2]} 2. Nf3 {[%clk 0:03:02.8]}
2... Nf6 {[%clk 0:03:01.2]} 3. Bf4 {[%clk 0:03:03.7]} 3... c5 {[%clk 0:03:01.1]}
4. Bxb8 {[%clk 0:03:01]} 4... Rxb8 {[%clk 0:03:01.6]} 5. Nc3 {[%clk 0:03:02.5]}
5... cxd4 {[%clk 0:03:00.1]} 6. Qxd4 {[%clk 0:03:03.3]} 6... a6 {[%clk
0:02:59.7]} 7. O-O-O {[%clk 0:02:55.9]} 7... Qc7 {[%clk 0:02:09.9]} 8. e4 {[%clk
0:02:23.4]} 8... dxe4 {[%clk 0:02:02.1]} 9. Ne5 {[%clk 0:02:15.9]} 9... e6
{[%clk 0:01:30.6]} 10. Nb5 {[%clk 0:01:13.2]} 10... axb5 {[%clk 0:01:15.1]} 11.
Bxb5+ {[%clk 0:01:14]} 11... Nd7 {[%clk 0:01:00.4]} 12. Nxd7 {[%clk 0:01:01.9]}
12... Bxd7 {[%clk 0:00:59.8]} 13. Bxd7+ {[%clk 0:01:01.9]} 13... Ke7 {[%clk
0:00:56.2]} 14. Qxe4 {[%clk 0:00:39.9]} 14... Kf6 {[%clk 0:00:19.4]} 15. f4
{[%clk 0:00:31.1]} 15... Bd6 {[%clk 0:00:16.8]} 16. Bb5 {[%clk 0:00:24.5]} 16...
Bxf4+ {[%clk 0:00:16.5]} 17. Kb1 {[%clk 0:00:25.6]} 17... Ke7 {[%clk 0:00:17.9]}
18. Rd7+ {[%clk 0:00:25.5]} 18... Qxd7 {[%clk 0:00:15.5]} 19. Bxd7 {[%clk
0:00:27.4]} 19... Bg5 {[%clk 0:00:15.9]} 20. Bb5 {[%clk 0:00:24.8]} 20... Rhd8
{[%clk 0:00:15.1]} 21. Bd3 {[%clk 0:00:21.7]} 21... h6 {[%clk 0:00:11.9]} 22. h4
{[%clk 0:00:21.7]} 22... Bf6 {[%clk 0:00:12.7]} 23. g4 {[%clk 0:00:23.2]} 23...
g6 {[%clk 0:00:10.9]} 24. h5 {[%clk 0:00:24.2]} 24... gxh5 {[%clk 0:00:11]} 25.
gxh5 {[%clk 0:00:24.7]} 25... Rd4 {[%clk 0:00:11.1]} 26. Qf3 {[%clk 0:00:25.2]}
26... Rb4 {[%clk 0:00:10.8]} 27. b3 {[%clk 0:00:24.3]} 27... Be5 {[%clk
0:00:09.3]} 28. Rf1 {[%clk 0:00:24.4]} 28... f6 {[%clk 0:00:10.5]} 29. Qg2
{[%clk 0:00:23.5]} 29... Kd6 {[%clk 0:00:05.6]} 30. Rd1 {[%clk 0:00:22.5]} 30...
Kc7 {[%clk 0:00:06.2]} 31. Qg7+ {[%clk 0:00:22.5]} 31... Kb6 {[%clk 0:00:07.6]}
32. a3 {[%clk 0:00:23.3]} 32... Rf4 {[%clk 0:00:07.6]} 33. Qxh6 {[%clk
0:00:23.4]} 33... Ra8 {[%clk 0:00:08.1]} 34. Ka2 {[%clk 0:00:22.8]} 34... Rg4
{[%clk 0:00:09.5]} 35. Qe3+ {[%clk 0:00:22.7]} 35... Kc7 {[%clk 0:00:09.7]} 36.
h6 {[%clk 0:00:20.9]} 36... Rgg8 {[%clk 0:00:10.9]} 37. Qc5+ {[%clk 0:00:21.5]}
37... Kd7 {[%clk 0:00:11.2]} 38. Bh7+ {[%clk 0:00:21.6]} 1-0

[Event "*** Titled Tuesday Blitz"]
[Site "Chess.com"]
[Date "2020.02.04"]
[Round "5"]
[White "WeAintSurePal"]
[Black "Atanejhad"]
[Result "0-1"]
[WhiteElo "2424"]
[BlackElo "2602"]
[TimeControl "180+2"]
[EndTime "10:07:24 PST"]
[Termination "Atanejhad won by checkmate"]

1. d4 {[%clk 0:03:01.9]} 1... Nf6 {[%clk 0:03:00.3]} 2. Nc3 {[%clk 0:02:57.3]}
2... d5 {[%clk 0:03:00.4]} 3. Bf4 {[%clk 0:02:56.9]} 3... Bf5 {[%clk 0:02:53.4]}
4. e3 {[%clk 0:02:58.1]} 4... e6 {[%clk 0:02:54.3]} 5. Nf3 {[%clk 0:02:57.9]}
5... Bd6 {[%clk 0:02:55.2]} 6. Bd3 {[%clk 0:02:57.6]} 6... Bxd3 {[%clk
0:02:54.7]} 7. Qxd3 {[%clk 0:02:58]} 7... Nbd7 {[%clk 0:02:55.8]} 8. Ne5 {[%clk
0:02:56.6]} 8... O-O {[%clk 0:02:55.7]} 9. O-O {[%clk 0:02:50.7]} 9... Qe7
{[%clk 0:02:55.3]} 10. e4 {[%clk 0:02:48]} 10... dxe4 {[%clk 0:02:54.8]} 11.
Nxe4 {[%clk 0:02:48.3]} 11... Nxe4 {[%clk 0:02:56.7]} 12. Qxe4 {[%clk
0:02:48.9]} 12... c6 {[%clk 0:02:42.9]} 13. Rfe1 {[%clk 0:02:45.9]} 13... Rfd8
{[%clk 0:02:42.1]} 14. Nxd7 {[%clk 0:02:45.6]} 14... Rxd7 {[%clk 0:02:43.9]} 15.
Rad1 {[%clk 0:02:47]} 15... Rad8 {[%clk 0:02:42.2]} 16. Rd3 {[%clk 0:02:44.2]}
16... Bxf4 {[%clk 0:02:38.6]} 17. Qxf4 {[%clk 0:02:44.9]} 17... Qb4 {[%clk
0:02:33.5]} 18. c3 {[%clk 0:02:36.9]} 18... Qxb2 {[%clk 0:02:33.3]} 19. Rg3
{[%clk 0:02:36.7]} 19... Rd5 {[%clk 0:01:56.6]} 20. h4 {[%clk 0:02:30.2]} 20...
Rf5 {[%clk 0:01:51.9]} 21. Qe3 {[%clk 0:02:12.3]} 21... Qxa2 {[%clk 0:01:51.7]}
22. Re2 {[%clk 0:02:05.6]} 22... Qa3 {[%clk 0:01:36.5]} 23. Qh6 {[%clk
0:01:55.5]} 23... Qf8 {[%clk 0:01:35.8]} 24. Re4 {[%clk 0:01:55.6]} 24... Kh8
{[%clk 0:01:35.3]} 25. Qe3 {[%clk 0:01:55.5]} 25... a5 {[%clk 0:01:35]} 26. Reg4
{[%clk 0:01:55.6]} 26... g6 {[%clk 0:01:33]} 27. Rf3 {[%clk 0:01:49.6]} 27...
Rdd5 {[%clk 0:01:31.3]} 28. c4 {[%clk 0:01:49.2]} 28... Rxf3 {[%clk 0:01:30.5]}
29. Qxf3 {[%clk 0:01:49]} 29... Rf5 {[%clk 0:01:32]} 30. Qe3 {[%clk 0:01:46.9]}
30... a4 {[%clk 0:01:23.6]} 31. c5 {[%clk 0:01:39.5]} 31... h5 {[%clk
0:01:14.1]} 32. Rg3 {[%clk 0:01:36.4]} 32... Qg7 {[%clk 0:01:14.2]} 33. Rg5
{[%clk 0:01:25.4]} 33... Rxg5 {[%clk 0:00:58.7]} 34. hxg5 {[%clk 0:01:27.3]}
34... Kh7 {[%clk 0:00:56.4]} 35. g3 {[%clk 0:01:18.6]} 35... Qh8 {[%clk
0:00:57.2]} 36. Kg2 {[%clk 0:01:16.3]} 36... Qd8 {[%clk 0:00:56]} 37. Qf4 {[%clk
0:01:15.4]} 37... Kg8 {[%clk 0:00:50.5]} 38. Qe3 {[%clk 0:01:09.1]} 38... Qd5+
{[%clk 0:00:51.4]} 39. Kh2 {[%clk 0:01:09.5]} 39... Qb3 {[%clk 0:00:41.7]} 40.
Qf4 {[%clk 0:01:01.8]} 40... a3 {[%clk 0:00:37]} 41. Qb8+ {[%clk 0:01:01.6]}
41... Kh7 {[%clk 0:00:37.3]} 42. Qe8 {[%clk 0:00:58.6]} 42... e5 {[%clk
0:00:35.2]} 43. dxe5 {[%clk 0:00:56.2]} 43... a2 {[%clk 0:00:36.2]} 44. Qa8
{[%clk 0:00:56.4]} 44... Qb2 {[%clk 0:00:32.7]} 45. e6 {[%clk 0:00:51.4]} 45...
a1=Q {[%clk 0:00:31]} 46. Qf8 {[%clk 0:00:49.9]} 46... Qxf2+ {[%clk 0:00:29.4]}
47. Kh3 {[%clk 0:00:51.2]} 47... Qh1# {[%clk 0:00:29.8]} 0-1

[Event "*** Titled Tuesday Blitz"]
[Site "Chess.com"]
[Date "2020.02.04"]
[Round "5"]
[White "AleksanderHnydiuk"]
[Black "GMHellers"]
[Result "0-1"]
[WhiteElo "2530"]
[BlackElo "2490"]
[TimeControl "180+2"]
[EndTime "10:07:40 PST"]
[Termination "GMHellers won by resignation"]

1. Nf3 {[%clk 0:03:01.9]} 1... d5 {[%clk 0:02:58.4]} 2. d4 {[%clk 0:03:02.6]}
2... c5 {[%clk 0:02:58.8]} 3. c4 {[%clk 0:03:02.9]} 3... e6 {[%clk 0:02:59.2]}
4. cxd5 {[%clk 0:03:03.1]} 4... exd5 {[%clk 0:02:59.3]} 5. g3 {[%clk 0:03:04.4]}
5... Nc6 {[%clk 0:02:56.7]} 6. Bg2 {[%clk 0:03:05.9]} 6... Nf6 {[%clk
0:02:56.8]} 7. O-O {[%clk 0:03:07.4]} 7... Be7 {[%clk 0:02:57.3]} 8. Nc3 {[%clk
0:03:07.7]} 8... O-O {[%clk 0:02:57.2]} 9. dxc5 {[%clk 0:03:09.3]} 9... Bxc5
{[%clk 0:02:57.7]} 10. Na4 {[%clk 0:03:10.9]} 10... Be7 {[%clk 0:02:52.8]} 11.
Be3 {[%clk 0:03:12.3]} 11... Re8 {[%clk 0:02:51.7]} 12. Rc1 {[%clk 0:03:11.8]}
12... Bg4 {[%clk 0:02:49.4]} 13. Nc5 {[%clk 0:02:54.5]} 13... Bxc5 {[%clk
0:02:38.1]} 14. Bxc5 {[%clk 0:02:54]} 14... Ne4 {[%clk 0:02:35.6]} 15. Be3
{[%clk 0:02:42.4]} 15... Qd7 {[%clk 0:02:35.7]} 16. Nd4 {[%clk 0:02:35.9]} 16...
Nxd4 {[%clk 0:02:02.3]} 17. Bxd4 {[%clk 0:02:18.8]} 17... Ng5 {[%clk 0:01:52.2]}
18. f3 {[%clk 0:01:42.1]} 18... Bh3 {[%clk 0:01:50]} 19. Qd2 {[%clk 0:01:37.3]}
19... Bxg2 {[%clk 0:01:38.1]} 20. Kxg2 {[%clk 0:01:37.9]} 20... Ne6 {[%clk
0:01:37.4]} 21. e3 {[%clk 0:01:27.3]} 21... b6 {[%clk 0:01:12.7]} 22. Rc3 {[%clk
0:01:23.1]} 22... Rad8 {[%clk 0:01:11.8]} 23. Rfc1 {[%clk 0:01:18.5]} 23... Re7
{[%clk 0:01:03.3]} 24. g4 {[%clk 0:00:59.9]} 24... f6 {[%clk 0:00:59.3]} 25. Rd3
{[%clk 0:00:51.7]} 25... Rde8 {[%clk 0:00:54.2]} 26. Bc3 {[%clk 0:00:34.7]}
26... Nf4+ {[%clk 0:00:53.5]} 27. exf4 {[%clk 0:00:21.4]} 27... Re2+ {[%clk
0:00:53]} 28. Kg3 {[%clk 0:00:23]} 28... Rxd2 {[%clk 0:00:52.6]} 29. Rxd2 {[%clk
0:00:24.9]} 29... h5 {[%clk 0:00:46.6]} 30. Rcd1 {[%clk 0:00:23.3]} 30... hxg4
{[%clk 0:00:44.6]} 31. Rxd5 {[%clk 0:00:24]} 31... Qc6 {[%clk 0:00:42.2]} 32.
fxg4 {[%clk 0:00:21.9]} 32... Qc4 {[%clk 0:00:42.4]} 33. R1d3 {[%clk 0:00:21.2]}
33... Qe4 {[%clk 0:00:40.2]} 34. g5 {[%clk 0:00:20]} 34... fxg5 {[%clk
0:00:36.5]} 35. fxg5 {[%clk 0:00:11.3]} 35... Rf8 {[%clk 0:00:31.6]} 36. Rd7
{[%clk 0:00:10.3]} 36... Qf4+ {[%clk 0:00:25.9]} 37. Kh3 {[%clk 0:00:07]} 37...
Qf1+ {[%clk 0:00:25.3]} 38. Kg3 {[%clk 0:00:07.9]} 38... Qf4+ {[%clk 0:00:23.7]}
39. Kh3 {[%clk 0:00:08.7]} 39... Rf7 {[%clk 0:00:17.5]} 40. R7d6 {[%clk
0:00:08.2]} 40... Qxg5 {[%clk 0:00:15.5]} 41. Rg3 {[%clk 0:00:05.7]} 41... Qf5+
{[%clk 0:00:13.5]} 42. Kh4 {[%clk 0:00:03.3]} 42... Qf4+ {[%clk 0:00:11.7]} 43.
Kh3 {[%clk 0:00:04.5]} 43... Qxd6 {[%clk 0:00:12]} 0-1